Cogmind - Beta 9.4 @@@ ROGUE MODE // 2020.02.02 @ 00:34:38 Player: PabloBot Result: Destroyed by G-34 Mercenary with Small Laser Performance ------------- Evolutions (0) 0 Regions Visited (1) 200 Robots Destroyed (24) 120 Value Destroyed (424) 424 Prototype IDs (5) 100 Alien Tech Used (0) 0 Bonus (0) 0 TOTAL SCORE: 844 Bonus ------- None Cogmind --------- Core Integrity 0/250 Matter 290/300 Energy 246/250 System Corruption 0% Temperature Cool (8) Movement Walking (120) Location -10/Materials Parts ------- > --- POWER (1) -------- Ion Engine > --- PROPULSION (2) --- Aluminum Leg Aluminum Leg > --- UTILITY (2) ------ Weapon Shielding Medium Armor Plating > --- WEAPON (2) ------- Light Assault Rifle Hammer > --- INVENTORY (4) ---- Medium Storage Unit Armor Integrity Analyzer Medium Armor Plating Medium Armor Plating Peak State ------------ > --- POWER ------------ Light Ion Engine > --- PROPULSION ------- Aluminum Leg Aluminum Leg > --- UTILITY ---------- Improved Heat Sink Medium Storage Unit > --- WEAPON ----------- Small Laser Light Assault Rifle > --- INVENTORY -------- Ion Engine Aluminum Leg Aluminum Leg Large Storage Unit Large Storage Unit Large Storage Unit Medium Armor Plating Medium Armor Plating [Rating: 10] Favorites ----------- Power Ion Engine Engine Ion Engine Propulsion Aluminum Leg Leg Aluminum Leg Utility Medium Storage Unit Device Improved Heat Sink Storage Medium Storage Unit Protection Weapon Shielding Weapon Light Assault Rifle Energy Gun Small Laser Ballistic Gun Light Assault Rifle Launcher Grenade Launcher Impact Weapon Hammer Build | -11 -10 ------- Run | Scr Mat Slots Evolved . | . . Power . | . . Propulsion . | . . Utility . | . . Weapon . | . . Parts Attached 30 | 7 23 Power 4 | 1 3 Engine 4 | 1 3 Core . | . . Reactor . | . . Propulsion 7 | 2 5 Treads . | . . Leg 7 | 2 5 Wheel . | . . Hover . | . . Flight . | . . Utility 7 | 2 5 Device 1 | . 1 Storage 3 | 2 1 Processor . | . . Hackware . | . . Protection 3 | . 3 Artifact . | . . Weapon 12 | 2 10 Energy Gun 3 | 1 2 Energy Cannon . | . . Ballistic Gun 6 | 1 5 Ballistic Cannon . | . . Launcher 1 | . 1 Special Weapon . | . . Impact Weapon 2 | . 2 Slashing Weapon . | . . Piercing Weapon . | . . Special Melee Weapon . | . . Unidentified Prototypes . | . . Parts Lost 4 | . 4 Power 1 | . 1 Propulsion 1 | . 1 Utility . | . . Weapon 2 | . 2 Highest Loss Streak 2 | . 2 Average Slot Usage (%) 99 | . 99 Engine 13 | . 13 Leg 28 | . 28 Device 1 | . 1 Storage 14 | . 14 Protection 11 | . 11 Energy Gun 5 | . 5 Ballistic Gun 11 | . 11 Launcher 2 | . 2 Impact Weapon 8 | . 8 Naked Turns . | . . Heaviest Build 23 | 14 23 Greatest Support 20 | 20 20 Greatest Overweight (x) 3 | 3 1 Average Overweight (x) . | . . Largest Inventory Capacity 8 | 8 8 Average Capacity 7 | 6 7 Most Carried 8 | 2 8 Average Carried 7 | 1 7 Final Capacity 8 | 8 4 Final Carried 4 | 2 4 Class Distribution -------------------- 98% | Mutant Dominant Class ---------------- Mutant | -10/Materials Resources | -11 -10 ----------- Run | Scr Mat Matter Collected 547 | 218 329 Remotely . | . . Salvage Created 718 | 90 628 Parts 43 | 3 40 Haulers Intercepted . | . . Recyclers Shooed 6 | . 6 Parts Field Recycled . | . . Retrieved Matter . | . . Parts Self-Destructed . | . . Prevented . | . . Kills | -11 -10 ------- Run | Scr Mat Combat Hostiles Destroyed 16 | . 16 Melee 3 | . 3 Guns 8 | . 8 AOE 2 | . 2 Classes Destroyed 6 | 1 5 Worker 1 | . 1 Recycler 3 | 1 2 Operator 2 | . 2 Watcher 2 | . 2 Swarmer 9 | . 9 Grunt 7 | . 7 Best Kill Streak 3 | 1 3 Combat Bots Only 3 | . 3 Max Kills in Single Turn 3 | 1 3 Gunslinging 1 | . 1 Exploded 2 | . 2 Melee 1 | . 1 Uniques/NPCs Destroyed . | . . Combat | -11 -10 -------- Run | Scr Mat Damage Taken 1085 | . 1085 Core 255 | . 255 Absorbed by Shields . | . . Core Remaining (%) 100 | 100 . Volleys Fired 67 | 3 64 Largest 2 | 2 2 Hottest 70 | 70 70 Shots Fired 121 | 6 115 Gun 120 | 6 114 Cannon . | . . Launcher 1 | . 1 Special . | . . Kinetic 67 | 3 64 Thermal 53 | 3 50 Explosive 1 | . 1 Electromagnetic . | . . Robot Hit Streak 13 | 2 13 Robot Miss Streak 8 | 1 8 Penetration Max . | . . Secondary Targets 3 | . 3 Max Gunslinging Chain 1 | . 1 Shots Hit Robots 113 | 4 109 Core Hits 35 | 2 33 Critical Hits 1 | . 1 Critical Kills 1 | . 1 Critical Parts Destroyed . | . . Melee Attacks 63 | . 63 Impact 63 | . 63 Slashing . | . . Piercing . | . . Sneak Attacks 2 | . 2 Combat Hostiles 1 | . 1 Follow-up Attacks . | . . Damage Inflicted 1482 | 43 1439 Guns 683 | 43 640 Cannons . | . . Explosions 86 | . 86 Melee 713 | . 713 Ramming . | . . Kinetic 306 | 19 287 Thermal 377 | 24 353 Explosive 86 | . 86 Electromagnetic . | . . Impact 713 | . 713 Slashing . | . . Piercing . | . . Highest Corruption . | . . Average Corruption . | . . Corruption Purged . | . . Overload Shots . | . . Overflow Damage 66 | . 66 Projectiles . | . . Explosions . | . . Melee 66 | . 66 Knockbacks 1 | . 1 Impact 1 | . 1 Kinetic . | . . Secondary . | . . Self-Inflicted Damage . | . . Shots . | . . Rammed . | . . Targets Rammed . | . . Kicked . | . . Crushed . | . . Highest Temperature 253 | 50 253 Average Temperature 76 | 26 80 Received Heat Transfer 324 | . 324 Effects 1 | . 1 Interference 1 | . 1 Siege Activations . | . . Robots Corrupted . | . . Combat Hostiles . | . . Parts Fried 7 | . 7 Impact Corruptions 10 | . 10 Robots Melted . | . . Combat Hostiles . | . . Parts Melted 1 | . 1 Heat Transferred 945 | 74 871 Parts Sabotaged . | . . Parts Stolen . | . . Parts Stripped . | . . Power Chain Reactions . | . . Missiles Intercepted . | . . Alert | -11 -10 ------- Run | Scr Mat Peak Influence 163 | 5 163 Average Influence 48 | 3 51 Maximum Alert Level . | . . Low Security (%) 100 | 100 100 Level 1 . | . . Level 2 . | . . Level 3 . | . . Level 4 . | . . Level 5 . | . . High Security . | . . Max Security . | . . Squads Dispatched 4 | . 4 Investigation 1 | . 1 Extermination . | . . Reinforcement 3 | . 3 Assault . | . . Garrison . | . . Intercept . | . . Construction Impeded . | . . Haulers Reinforced . | . . Stealth | -11 -10 --------- Run | Scr Mat Distress Signals 1 | . 1 Communications Jammed . | . . Distress Signals . | . . Times Spotted 36 | . 36 Peak Tracking Total 4 | . 4 Tactical Retreats 3 | . 3 Traps | -11 -10 ------- Run | Scr Mat Traps Triggered . | . . Indirectly . | . . Trap Hack Attempts . | . . Triggered . | . . Disarmed . | . . Reprogrammed . | . . Reused . | . . Traps Extracted . | . . Installed . | . . Triggered . | . . Machines | -11 -10 ---------- Run | Scr Mat Machines Disabled . | . . Max in Single Turn . | . . Machines Sabotaged . | . . Garrisons Compromised . | . . Overloaded Fab Kills . | . . Fab Network Shutdowns . | . . Hacking | -11 -10 --------- Run | Scr Mat Machines Accessed 7 | . 7 Terminals 5 | . 5 Fabricators . | . . Repair Stations 1 | . 1 Recycling Units 1 | . 1 Scanalyzers . | . . Garrison Access . | . . Total Hacks 21 | . 21 Successful 15 | . 15 Failed 6 | . 6 Catastrophic 1 | . 1 Database Lockouts . | . . Manual . | . . Terminals 17 | . 17 Fabricators . | . . Repair Stations 3 | . 3 Recycling Units 1 | . 1 Scanalyzers . | . . Garrison Access . | . . Terminal Hacks 12 | . 12 Record 2 | . 2 Robot Analysis 1 | . 1 Prototype ID Bank 3 | . 3 Dispatch Records 2 | . 2 Investigation Status 1 | . 1 Recall Reinforcements 1 | . 1 Hauler Manifests 1 | . 1 Zone Layout 1 | . 1 Fabricator Hacks . | . . Repair Station Hacks 2 | . 2 Scan Component 1 | . 1 Repair 1 | . 1 Recycling Unit Hacks 1 | . 1 Retrieve Components 1 | . 1 Scanalyzer . | . . Garrison Access Hacks . | . . Unauthorized Hacks . | . . Terminals . | . . Fabricators . | . . Repair Stations . | . . Recycling Units . | . . Scanalyzers . | . . Garrison Access . | . . Data Cores Recovered . | . . Used . | . . Hacking Detections 6 | . 6 Full Trace Events 4 | . 4 Feedback Events . | . . Feedback Blocked . | . . Robot Schematics Acquired . | . . Robots Built . | . . Matter . | . . Time . | . . Total Robot Build Rating . | . . Part Schematics Acquired . | . . Parts Built . | . . Matter . | . . Time . | . . Total Part Build Rating . | . . Parts Repaired 1 | . 1 Time 26 | . 26 Parts Recycled . | . . Recycled Matter . | . . Retrieved Matter . | . . Retrieved Components 10 | . 10 Parts Scanalyzed . | . . Part Schematics Acquired . | . . Parts Damaged . | . . Bothacking | -11 -10 ------------ Run | Scr Mat Used RIF Installer . | . . Robots Hacked . | . . Non-combat . | . . Combat . | . . Robot Hacks Applied . | . . Relay Couplers Released . | . . Robots Rewired . | . . Allies Hacked . | . . Hacks Repelled . | . . Allies | -11 -10 -------- Run | Scr Mat Total Allies . | . . Largest Group . | . . Highest-Rated Group . | . . Highest-Rated Ally . | . . Total Orders . | . . Ally Attacks . | . . Total Damage . | . . Kills . | . . Allies Corrupted . | . . Allies Melted . | . . Intel | -11 -10 ------- Run | Scr Mat Robot Analysis Total 1 | . 1 Derelict Logs Recovered . | . . Drone Launches . | . . Drone Recoveries . | . . Exploration | -11 -10 ------------- Run | Scr Mat Turns Passed 2322 | 131 2191 Spaces Moved 1360 | 90 1270 Core 46 | 46 . Treads . | . . Legs 1314 | 44 1270 Wheels . | . . Hover . | . . Flight . | . . Fastest Speed 50 | 50 120 Average Speed 122 | 123 121 Slowest Speed 200 | 200 150 Overloaded Moves . | . . Propulsion Burnouts . | . . Robots Hopped . | . . Cave-ins Triggered . | . . Exploration Rate (%) 48 | 4 92 Regions Visited 1 Branch Regions . Pre-discovered Areas . | . . Known Exits Taken . | . . Unknown Exits Taken 1 | 1 . Scrap Searched . | . . Spaces Dug 6 | . 6 Terrain Destroyed 6 | . 6 Melee . | . . Projectile . | . . AOE 6 | . 6 Actions | -11 -10 --------- Run | Scr Mat Total 1820 | 101 1719 Wait 262 | . 262 Move 1359 | 89 1270 Hop . | . . Pick Up 19 | 2 17 Fast Attach 12 | 7 5 Attach 3 | . 3 Detach . | . . Swap 15 | . 15 Drop 20 | . 20 Fire 67 | 3 64 Melee 63 | . 63 Ram . | . . Kick . | . . Crush . | . . Escape Stasis . | . . Rewire . | . . Trap . | . . Miscellaneous . | . . Route ------- -11/Scrapyard -10/Materials (discovered 4 exits: [*Mat x3] / [*Min]) History --------- Turn | Location | Event 7 | -11/Scrapyard | Discovered new exit (range 15) 132 | -11/Scrapyard | Entered Materials 323 | -10/Materials | Build established: Mutant 494 | -10/Materials | Discovered new exit (range 12) 774 | -10/Materials | Discovered new exit (range 8) 1008 | -10/Materials | Discovered new exit (range 12) 1249 | -10/Materials | Discovered new exit (range 3) 1367 | -10/Materials | Core integrity fell below 50% 1970 | -10/Materials | Repaired Hammer 2283 | -10/Materials | Core integrity fell below 20% 2323 | -10/Materials | Destroyed by G-34 Mercenary with Small Laser Last Messages --------------- processing in the lower levels of [Complex 0b10]. Initially the mining tunnels only rarely experienced hostile [Derelict] activity, not enough to justify allocating significant resources to defense. This has recently changed with the [Infestation], for which the current response is to dispatch garrisoned Demolishers until a more permanent solution can be put in place. >>Query(Fabricator) Self-contained construction unit capable of building almost any component or robot for which detailed schematics are provided. An internal generator provides all the energy required for fabrication, but matter input is drawn from the local network as per fabricator specification, while some schematics may call for preassembled subcomponents. Advanced fabricators can complete complex tasks more quickly. 02241_ ALERT: Suspicious activity at Terminal M003. Dispatching Investigation squad. 02276_ Sneak attack on G-34 Mercenary. 02303_ Destroyed Sml. Laser. 02303_ G-34 Mercenary system corrupted by crushing effect. 02311_ Destroyed Heat Sink. 02311_ G-34 Mercenary system corrupted by crushing effect. 02319_ G-34 Mercenary destroyed. Map ----- +----------------------------------------------------+ | | | | | | | | | | | | | ??????????????????????????????????????? | | ???????########???????????????????????? | | ???????#[[!!!!#???????????????????????? | | ???????#[[! !!#????????????##########?? | | ???????# #????????????# !!! #?? | | ???????### ##???????????#[ !!! ### | | ?????????# ############# ! ! ! ## | | ?????????# # # ## | | ??????#### # """ """# ## | | ???#### # """ T"# """ ## | | ???# + """ """# [ """ ## | | ???# === # # """ ## | | ???# === ############# ## | | ???# === ###############+#####= | | ???# % % | | ???# | | ???# | | ???# ########+###################+### | | ???# #?# !g!#????????????# % ## | | ???# #?# """@ #????????????# """ ## | | ?###+### """ #????????????# """ ## | | ?# # """ #????????????# """ ## | | ?# T # *% #????????????# """ ## | | ?# # """ #????????????# """ ## | | ?# """ # """ #????????????# ## | | ?# """ # """ #????????????# ## | | ?# """ # #????????????# ## | | ?# ################??????# ## | | ?################ #??????# "T" ## | | ????????# ## """ #??????# """ ## | | ????????# """ ## """ #??????# + | | ????????# """ ## """ #??????######### | | ????????# """ ## """ #??????????????## | | ????????# ## """ #???????????????# | | ????????# ## #######?????????# | | ????????####+######+### ########### | | ????????# | | ????????# | | ????????# | | ????????# #+########## ########### | | ????????# # #???## ############ | | ????????# # #????# # """ ! | | ????????# # !!! #????# # "R" | | ????????# # !! #????# + " " """ "" | +----------------------------------------------------+ Best States ------------- Heat Dissipation 39 Energy Generation 10 Energy Capacity 250 Matter Stores 300 Matter Capacity 300 Sight Range 16 Terrain Scan Density 10 Armor Coverage 225 Weapon Shielding 33 Evasion (%) 40 Item Schematics ----------------- None Robot Schematics ------------------ None Fabricated ------------ Nothing Alien Tech Used ----------------- None Achievements -------------- GoHome() Challenges ------------ None Game ------ Seed TachyonKineticMagmablaster Manual? 0 Play Time 00:49:26 Cumulative 14.2 hours Start 2020.02.01 @ 23:07:32 End 2020.02.02 @ 00:34:38 Sessions 1 Manual Loads 0 Difficulty Rogue Special Mode None Game No. 10 Rogue 10 Adventurer 0 Explorer 0 Win Type - Total 0 Types 0/0/0/0/0/0/0 Lore% 9 Gallery% 17 Achievement% 13 Wizard Run 0 Options --------- ASCII 0 Keyboard 0 Movement Numpad Keybinds 0 Fullscreen 1 Font 12/Terminus Map View 83x54 Tactical HUD 1 Map Filters NONE Filters NONE Steam 1 RUN: 7c3a26b5-0cd7-48a1-928b-b4f4f07b6cad